{"text_format":"3","workbook":"xlsx","n_sheets":14,"sheets":["vihjeitä","yhteenveto","tam","hel","maa","huh","toukokuu","kes","hei","elo","syy","lok","mar","jou"],"not_rendered":{"charts":1,"defined_names":27},"read":"whole","date_system":"1900"}

{"sheet":"vihjeitä","index":0,"n_rows":18,"n_cols":1,"rows_kept":18}
["MALLIVIHJEET"]
["Onko olemassa helppoa tapaa siirtyä Menotrendit-yhteenvetotaulukosta kuukausimenotietoihin ja päinvastoin?"]
["Voit siirtyä nopeasti tietyn kuukauden menoihin valitsemalla asianmukaisen siirtymislinkin kaavion yläpuolella, kuten Tam-siirtymislinkin solussa B2. Voit sen jälkeen palata Menotrendit-taulukkoon valitsemalla Yhteenveto-siirtymislinkin solussa D1. "]
["Voit palata vihjelaskentataulukkoon valitsemalla yhteenvetolaskentataulukossa solun N2. Valitse kaikissa kuukausilaskentataulukoissa solu E1."]
["Miten lisään uuden menotyypin Menoyhteenvetoon tai uusiin kuukausimenoihin?"]
["Kaavion alapuolella oleva Menoyhteenveto ja jokaisen kuukauden menotiedot ovat Excel-taulukoita. Voit lisätä uusia rivejä Excel-taulukko seuraavilla tavoilla:"]
[{"$f":"ROW(A1)&\". Jos taulukossa ei ole summariviä, kirjoita taulukon alapuolelle. Taulukko laajenee automaattisesti, kun painat ENTER- tai SARKAIN-näppäintä.\"","v":"1. Jos taulukossa ei ole summariviä, kirjoita taulukon alapuolelle. Taulukko laajenee automaattisesti, kun painat ENTER- tai SARKAIN-näppäintä."}]
[{"$f":"ROW(A2)&\". Aseta osoitin viimeiseen soluun summarivin yläpuolelle, esimerkiksi viimeisimmän menon summaan, ja paina sitten SARKAIN-näppäintä.\"","v":"2. Aseta osoitin viimeiseen soluun summarivin yläpuolelle, esimerkiksi viimeisimmän menon summaan, ja paina sitten SARKAIN-näppäintä."}]
[{"$f":"ROW(A3)&\". Napsauta taulukkoa hiiren kakkospainikkeella, valitse valikosta Lisää ja valitse sitten Taulukon rivejä yläpuolelle tai Taulukon rivejä alapuolelle.\"","v":"3. Napsauta taulukkoa hiiren kakkospainikkeella, valitse valikosta Lisää ja valitse sitten Taulukon rivejä yläpuolelle tai Taulukon rivejä alapuolelle."}]
[{"$f":"ROW(A4)&\". Aseta hiiren osoitin taulukon oikeassa alakulmassa olevan koonmuuttokahvan päälle ja lisää taulukon rivien määrää vetämällä.\"","v":"4. Aseta hiiren osoitin taulukon oikeassa alakulmassa olevan koonmuuttokahvan päälle ja lisää taulukon rivien määrää vetämällä."}]
["Anna meno Yhteenveto-laskentataulukon Menoyhteenveto-taulukon Menot-sarakkeeseen."]
["Lisää jokaisen menotyypin menon summa sen kuukauden laskentataulukkoon, johon meno liittyy."]
["esimerkki: \"Meno 1\" liittyy kuukausiin tammikuusta kesäkuuhun sekä joulukuuhun. "]
[{"$f":"ROW(A1)&\". Meno 1 lisätään yhteenvetolaskentataulukkoon Menot-kohdan alle MenojenYhteenveto-taulukossa (menotyypin otsikko)\"","v":"1. Meno 1 lisätään yhteenvetolaskentataulukkoon Menot-kohdan alle MenojenYhteenveto-taulukossa (menotyypin otsikko)"}]
[{"$f":"ROW(A2)&\". Anna menoa vastaava summa jokaisen kuukauden kohdalla laskentataulukossa.\"","v":"2. Anna menoa vastaava summa jokaisen kuukauden kohdalla laskentataulukossa."}]
[{"$f":"ROW(A3)&\". MenojenYhteenveto-laskentataulukon menotyyppi luo luettelon luokista jokaisen kuukauden Luokka-sarakkeelle.\"","v":"3. MenojenYhteenveto-laskentataulukon menotyyppi luo luettelon luokista jokaisen kuukauden Luokka-sarakkeelle."}]
[{"$f":"ROW(A4)&\". Summaa vastaavan menotyypin voi valita Luokka-sarakkeen luettelosta.\"","v":"4. Summaa vastaavan menotyypin voi valita Luokka-sarakkeen luettelosta."}]
[{"$f":"ROW(A5)&\". Lisää uusi meno kuukaudelle lisäämällä uusi rivi MenojenYhteenveto-taulukkoon yhteenvetolaskentataulukossa ja antamalla menon tiedot vastaavan kuukauden laskentataulukossa.\"","v":"5. Lisää uusi meno kuukaudelle lisäämällä uusi rivi MenojenYhteenveto-taulukkoon yhteenvetolaskentataulukossa ja antamalla menon tiedot vastaavan kuukauden laskentataulukossa."}]

{"sheet":"yhteenveto","index":1,"n_rows":10,"n_cols":15,"rows_kept":10}
["MENOTRENDIT"]
[null,"Tammi","Helmi","Maalis","Huhti","Touko","Kesä","Heinä","Elo","Syys","Loka","Marras","Joulu","Vihjeitä"]
[]
["Menot","Tammi","Helmi","Maalis","Huhti","Touko","Kesä","Heinä","Elo","Syys","Loka","Marras","Joulu","Summa","Trendi"]
["Meno 1",{"$f":"SUMIFS(MenotTam[Summa],MenotTam[Luokka],MenojenYhteenveto[Menot])","v":{"v":33,"d":"33.00"}},{"$f":"SUMIFS(MenotHel[Summa],MenotHel[Luokka],MenojenYhteenveto[Menot])","v":{"v":375,"d":"375.00"}},{"$f":"SUMIFS(MenotMaa[Summa],MenotMaa[Luokka],MenojenYhteenveto[Menot])","v":{"v":33,"d":"33.00"}},{"$f":"SUMIFS(MenotHuh[Summa],MenotHuh[Luokka],MenojenYhteenveto[Menot])","v":{"v":45,"d":"45.00"}},{"$f":"SUMIFS(MenotTou[Summa],MenotTou[Luokka],MenojenYhteenveto[Menot])","v":{"v":375,"d":"375.00"}},{"$f":"SUMIFS(MenotKes[Summa],MenotKes[Luokka],MenojenYhteenveto[Menot])","v":{"v":201,"d":"201.00"}},{"$f":"SUMIFS(MenotHei[Summa],MenotHei[Luokka],MenojenYhteenveto[Menot])","v":{"v":0,"d":"0.00"}},{"$f":"SUMIFS(MenotElo[Summa],MenotElo[Luokka],MenojenYhteenveto[Menot])","v":{"v":0,"d":"0.00"}},{"$f":"SUMIFS(MenotSyy[Summa],MenotSyy[Luokka],MenojenYhteenveto[Menot])","v":{"v":0,"d":"0.00"}},{"$f":"SUMIFS(MenotLok[Summa],MenotLok[Luokka],MenojenYhteenveto[Menot])","v":{"v":0,"d":"0.00"}},{"$f":"SUMIFS(MenotMar[Summa],MenotMar[Luokka],MenojenYhteenveto[Menot])","v":{"v":0,"d":"0.00"}},{"$f":"SUMIFS(MenotJou[Summa],MenotJou[Luokka],MenojenYhteenveto[Menot])","v":{"v":201,"d":"201.00"}},{"$f":"SUM(MenojenYhteenveto[[#This Row],[Tammi]:[Joulu]])","v":{"v":1263,"d":"1,263.00"}}]
["Meno 2",{"$f":"SUMIFS(MenotTam[Summa],MenotTam[Luokka],MenojenYhteenveto[Menot])","v":{"v":238,"d":"238.00"}},{"$f":"SUMIFS(MenotHel[Summa],MenotHel[Luokka],MenojenYhteenveto[Menot])","v":{"v":238,"d":"238.00"}},{"$f":"SUMIFS(MenotMaa[Summa],MenotMaa[Luokka],MenojenYhteenveto[Menot])","v":{"v":238,"d":"238.00"}},{"$f":"SUMIFS(MenotHuh[Summa],MenotHuh[Luokka],MenojenYhteenveto[Menot])","v":{"v":123,"d":"123.00"}},{"$f":"SUMIFS(MenotTou[Summa],MenotTou[Luokka],MenojenYhteenveto[Menot])","v":{"v":111,"d":"111.00"}},{"$f":"SUMIFS(MenotKes[Summa],MenotKes[Luokka],MenojenYhteenveto[Menot])","v":{"v":98,"d":"98.00"}},{"$f":"SUMIFS(MenotHei[Summa],MenotHei[Luokka],MenojenYhteenveto[Menot])","v":{"v":0,"d":"0.00"}},{"$f":"SUMIFS(MenotElo[Summa],MenotElo[Luokka],MenojenYhteenveto[Menot])","v":{"v":0,"d":"0.00"}},{"$f":"SUMIFS(MenotSyy[Summa],MenotSyy[Luokka],MenojenYhteenveto[Menot])","v":{"v":0,"d":"0.00"}},{"$f":"SUMIFS(MenotLok[Summa],MenotLok[Luokka],MenojenYhteenveto[Menot])","v":{"v":0,"d":"0.00"}},{"$f":"SUMIFS(MenotMar[Summa],MenotMar[Luokka],MenojenYhteenveto[Menot])","v":{"v":0,"d":"0.00"}},{"$f":"SUMIFS(MenotJou[Summa],MenotJou[Luokka],MenojenYhteenveto[Menot])","v":{"v":440,"d":"440.00"}},{"$f":"SUM(MenojenYhteenveto[[#This Row],[Tammi]:[Joulu]])","v":{"v":1486,"d":"1,486.00"}}]
["Meno 3",{"$f":"SUMIFS(MenotTam[Summa],MenotTam[Luokka],MenojenYhteenveto[Menot])","v":{"v":110,"d":"110.00"}},{"$f":"SUMIFS(MenotHel[Summa],MenotHel[Luokka],MenojenYhteenveto[Menot])","v":{"v":110,"d":"110.00"}},{"$f":"SUMIFS(MenotMaa[Summa],MenotMaa[Luokka],MenojenYhteenveto[Menot])","v":{"v":110,"d":"110.00"}},{"$f":"SUMIFS(MenotHuh[Summa],MenotHuh[Luokka],MenojenYhteenveto[Menot])","v":{"v":125,"d":"125.00"}},{"$f":"SUMIFS(MenotTou[Summa],MenotTou[Luokka],MenojenYhteenveto[Menot])","v":{"v":333,"d":"333.00"}},{"$f":"SUMIFS(MenotKes[Summa],MenotKes[Luokka],MenojenYhteenveto[Menot])","v":{"v":122,"d":"122.00"}},{"$f":"SUMIFS(MenotHei[Summa],MenotHei[Luokka],MenojenYhteenveto[Menot])","v":{"v":0,"d":"0.00"}},{"$f":"SUMIFS(MenotElo[Summa],MenotElo[Luokka],MenojenYhteenveto[Menot])","v":{"v":0,"d":"0.00"}},{"$f":"SUMIFS(MenotSyy[Summa],MenotSyy[Luokka],MenojenYhteenveto[Menot])","v":{"v":0,"d":"0.00"}},{"$f":"SUMIFS(MenotLok[Summa],MenotLok[Luokka],MenojenYhteenveto[Menot])","v":{"v":0,"d":"0.00"}},{"$f":"SUMIFS(MenotMar[Summa],MenotMar[Luokka],MenojenYhteenveto[Menot])","v":{"v":0,"d":"0.00"}},{"$f":"SUMIFS(MenotJou[Summa],MenotJou[Luokka],MenojenYhteenveto[Menot])","v":{"v":122,"d":"122.00"}},{"$f":"SUM(MenojenYhteenveto[[#This Row],[Tammi]:[Joulu]])","v":{"v":1032,"d":"1,032.00"}}]
["Meno 4",{"$f":"SUMIFS(MenotTam[Summa],MenotTam[Luokka],MenojenYhteenveto[Menot])","v":{"v":426,"d":"426.00"}},{"$f":"SUMIFS(MenotHel[Summa],MenotHel[Luokka],MenojenYhteenveto[Menot])","v":{"v":84,"d":"84.00"}},{"$f":"SUMIFS(MenotMaa[Summa],MenotMaa[Luokka],MenojenYhteenveto[Menot])","v":{"v":84,"d":"84.00"}},{"$f":"SUMIFS(MenotHuh[Summa],MenotHuh[Luokka],MenojenYhteenveto[Menot])","v":{"v":426,"d":"426.00"}},{"$f":"SUMIFS(MenotTou[Summa],MenotTou[Luokka],MenojenYhteenveto[Menot])","v":{"v":125,"d":"125.00"}},{"$f":"SUMIFS(MenotKes[Summa],MenotKes[Luokka],MenojenYhteenveto[Menot])","v":{"v":187,"d":"187.00"}},{"$f":"SUMIFS(MenotHei[Summa],MenotHei[Luokka],MenojenYhteenveto[Menot])","v":{"v":0,"d":"0.00"}},{"$f":"SUMIFS(MenotElo[Summa],MenotElo[Luokka],MenojenYhteenveto[Menot])","v":{"v":0,"d":"0.00"}},{"$f":"SUMIFS(MenotSyy[Summa],MenotSyy[Luokka],MenojenYhteenveto[Menot])","v":{"v":0,"d":"0.00"}},{"$f":"SUMIFS(MenotLok[Summa],MenotLok[Luokka],MenojenYhteenveto[Menot])","v":{"v":0,"d":"0.00"}},{"$f":"SUMIFS(MenotMar[Summa],MenotMar[Luokka],MenojenYhteenveto[Menot])","v":{"v":0,"d":"0.00"}},{"$f":"SUMIFS(MenotJou[Summa],MenotJou[Luokka],MenojenYhteenveto[Menot])","v":{"v":187,"d":"187.00"}},{"$f":"SUM(MenojenYhteenveto[[#This Row],[Tammi]:[Joulu]])","v":{"v":1519,"d":"1,519.00"}}]
["Meno 5",{"$f":"SUMIFS(MenotTam[Summa],MenotTam[Luokka],MenojenYhteenveto[Menot])","v":{"v":54,"d":"54.00"}},{"$f":"SUMIFS(MenotHel[Summa],MenotHel[Luokka],MenojenYhteenveto[Menot])","v":{"v":54,"d":"54.00"}},{"$f":"SUMIFS(MenotMaa[Summa],MenotMaa[Luokka],MenojenYhteenveto[Menot])","v":{"v":109,"d":"109.00"}},{"$f":"SUMIFS(MenotHuh[Summa],MenotHuh[Luokka],MenojenYhteenveto[Menot])","v":{"v":98,"d":"98.00"}},{"$f":"SUMIFS(MenotTou[Summa],MenotTou[Luokka],MenojenYhteenveto[Menot])","v":{"v":33,"d":"33.00"}},{"$f":"SUMIFS(MenotKes[Summa],MenotKes[Luokka],MenojenYhteenveto[Menot])","v":{"v":441,"d":"441.00"}},{"$f":"SUMIFS(MenotHei[Summa],MenotHei[Luokka],MenojenYhteenveto[Menot])","v":{"v":0,"d":"0.00"}},{"$f":"SUMIFS(MenotElo[Summa],MenotElo[Luokka],MenojenYhteenveto[Menot])","v":{"v":0,"d":"0.00"}},{"$f":"SUMIFS(MenotSyy[Summa],MenotSyy[Luokka],MenojenYhteenveto[Menot])","v":{"v":0,"d":"0.00"}},{"$f":"SUMIFS(MenotLok[Summa],MenotLok[Luokka],MenojenYhteenveto[Menot])","v":{"v":0,"d":"0.00"}},{"$f":"SUMIFS(MenotMar[Summa],MenotMar[Luokka],MenojenYhteenveto[Menot])","v":{"v":0,"d":"0.00"}},{"$f":"SUMIFS(MenotJou[Summa],MenotJou[Luokka],MenojenYhteenveto[Menot])","v":{"v":99,"d":"99.00"}},{"$f":"SUM(MenojenYhteenveto[[#This Row],[Tammi]:[Joulu]])","v":{"v":888,"d":"888.00"}}]
["Summa",{"$f":"SUBTOTAL(109,MenojenYhteenveto[Tammi])","v":{"v":861,"d":"861.00"}},{"$f":"SUBTOTAL(109,MenojenYhteenveto[Helmi])","v":{"v":861,"d":"861.00"}},{"$f":"SUBTOTAL(109,MenojenYhteenveto[Maalis])","v":{"v":574,"d":"574.00"}},{"$f":"SUBTOTAL(109,MenojenYhteenveto[Huhti])","v":{"v":817,"d":"817.00"}},{"$f":"SUBTOTAL(109,MenojenYhteenveto[Touko])","v":{"v":977,"d":"977.00"}},{"$f":"SUBTOTAL(109,MenojenYhteenveto[Kesä])","v":{"v":1049,"d":"1,049.00"}},{"$f":"SUBTOTAL(109,MenojenYhteenveto[Heinä])","v":{"v":0,"d":"0.00"}},{"$f":"SUBTOTAL(109,MenojenYhteenveto[Elo])","v":{"v":0,"d":"0.00"}},{"$f":"SUBTOTAL(109,MenojenYhteenveto[Syys])","v":{"v":0,"d":"0.00"}},{"$f":"SUBTOTAL(109,MenojenYhteenveto[Loka])","v":{"v":0,"d":"0.00"}},{"$f":"SUBTOTAL(109,MenojenYhteenveto[Marras])","v":{"v":0,"d":"0.00"}},{"$f":"SUBTOTAL(109,MenojenYhteenveto[Joulu])","v":{"v":1049,"d":"1,049.00"}},{"$f":"SUBTOTAL(109,MenojenYhteenveto[Summa])","v":{"v":6188,"d":"6,188.00"}}]

{"sheet":"tam","index":2,"n_rows":9,"n_cols":5,"rows_kept":9,"merged":[[0,0,0,2]]}
["TAMMIKUUN MENOT",null,null,"Yhteenveto","Vihjeitä"]
["Päivämäärä","OSTOTIL.NRO","Summa","Luokka","Kuvaus"]
[{"$f":"DATE(YEAR(TODAY()),1,4)","v":"2017-01-04"},"A-12345",{"v":33,"d":"33.00"},"Meno 1","Tarvikkeet"]
[{"$f":"DATE(YEAR(TODAY()),1,5)","v":"2017-01-05"},"A-12346",{"v":238,"d":"238.00"},"Meno 2"]
[null,null,{"v":342,"d":"342.00"},"Meno 4"]
[null,null,{"v":110,"d":"110.00"},"Meno 3"]
[null,null,{"v":84,"d":"84.00"},"Meno 4"]
[null,null,{"v":54,"d":"54.00"},"Meno 5"]
["Summa",null,{"$f":"SUBTOTAL(109,MenotTam[Summa])","v":{"v":861,"d":"861.00"}}]

{"sheet":"hel","index":3,"n_rows":9,"n_cols":5,"rows_kept":9,"merged":[[0,0,0,2]]}
["HELMIKUUN MENOT",null,null,"Yhteenveto","Vihjeitä"]
["Päivämäärä","OSTOTIL.NRO","Summa","Luokka","Kuvaus"]
[{"$f":"DATE(YEAR(TODAY()),2,3)","v":"2017-02-03"},"A-12345",{"v":33,"d":"33.00"},"Meno 1","Tarvikkeet"]
[{"$f":"DATE(YEAR(TODAY()),2,4)","v":"2017-02-04"},"A-12346",{"v":238,"d":"238.00"},"Meno 2"]
[null,null,{"v":342,"d":"342.00"},"Meno 1"]
[null,null,{"v":110,"d":"110.00"},"Meno 3"]
[null,null,{"v":84,"d":"84.00"},"Meno 4"]
[null,null,{"v":54,"d":"54.00"},"Meno 5"]
["Summa",null,{"$f":"SUBTOTAL(109,MenotHel[Summa])","v":{"v":861,"d":"861.00"}}]

{"sheet":"maa","index":4,"n_rows":9,"n_cols":5,"rows_kept":9,"merged":[[0,0,0,2]]}
["MAALISKUUN MENOT",null,null,"Yhteenveto","Vihjeitä"]
["Päivämäärä","OSTOTIL.NRO","Summa","Luokka","Kuvaus"]
[{"$f":"DATE(YEAR(TODAY()),3,5)","v":"2017-03-05"},"A-12345",{"v":33,"d":"33.00"},"Meno 1","Tarvikkeet"]
[{"$f":"DATE(YEAR(TODAY()),3,6)","v":"2017-03-06"},"A-12346",{"v":238,"d":"238.00"},"Meno 2"]
[null,null,{"v":55,"d":"55.00"},"Meno 5"]
[null,null,{"v":110,"d":"110.00"},"Meno 3"]
[null,null,{"v":84,"d":"84.00"},"Meno 4"]
[null,null,{"v":54,"d":"54.00"},"Meno 5"]
["Summa",null,{"$f":"SUBTOTAL(109,MenotMaa[Summa])","v":{"v":574,"d":"574.00"}}]

{"sheet":"huh","index":5,"n_rows":9,"n_cols":5,"rows_kept":9,"merged":[[0,0,0,2]]}
["HUHTIKUUN MENOT",null,null,"Yhteenveto","Vihjeitä"]
["Päivämäärä","OSTOTIL.NRO","Summa","Luokka","Kuvaus"]
[{"$f":"DATE(YEAR(TODAY()),4,4)","v":"2017-04-04"},"A-12345",{"v":45,"d":"45.00"},"Meno 1","Tarvikkeet"]
[{"$f":"DATE(YEAR(TODAY()),4,8)","v":"2017-04-08"},"A-12346",{"v":123,"d":"123.00"},"Meno 2"]
[null,null,{"v":342,"d":"342.00"},"Meno 4"]
[null,null,{"v":125,"d":"125.00"},"Meno 3"]
[null,null,{"v":84,"d":"84.00"},"Meno 4"]
[null,null,{"v":98,"d":"98.00"},"Meno 5"]
["Summa",null,{"$f":"SUBTOTAL(109,MenotHuh[Summa])","v":{"v":817,"d":"817.00"}}]

{"sheet":"toukokuu","index":6,"n_rows":9,"n_cols":5,"rows_kept":9,"merged":[[0,0,0,2]]}
["TOUKOKUUN MENOT",null,null,"Yhteenveto","Vihjeitä"]
["Päivämäärä","OSTOTIL.NRO","Summa","Luokka","Kuvaus"]
[{"$f":"DATE(YEAR(TODAY()),5,3)","v":"2017-05-03"},"A-12345",{"v":33,"d":"33.00"},"Meno 1","Tarvikkeet"]
[{"$f":"DATE(YEAR(TODAY()),5,8)","v":"2017-05-08"},"A-12346",{"v":111,"d":"111.00"},"Meno 2"]
[null,null,{"v":342,"d":"342.00"},"Meno 1"]
[null,null,{"v":333,"d":"333.00"},"Meno 3"]
[null,null,{"v":125,"d":"125.00"},"Meno 4"]
[null,null,{"v":33,"d":"33.00"},"Meno 5"]
["Summa",null,{"$f":"SUBTOTAL(109,MenotTou[Summa])","v":{"v":977,"d":"977.00"}}]

{"sheet":"kes","index":7,"n_rows":9,"n_cols":5,"rows_kept":9,"merged":[[0,0,0,2]]}
["KESÄKUUN MENOT",null,null,"Yhteenveto","Vihjeitä"]
["Päivämäärä","OSTOTIL.NRO","Summa","Luokka","Kuvaus"]
[{"$f":"DATE(YEAR(TODAY()),6,7)","v":"2017-06-07"},"A-12345",{"v":201,"d":"201.00"},"Meno 1","Tarvikkeet"]
[{"$f":"DATE(YEAR(TODAY()),6,8)","v":"2017-06-08"},"A-12346",{"v":98,"d":"98.00"},"Meno 2"]
[null,null,{"v":342,"d":"342.00"},"Meno 5"]
[null,null,{"v":122,"d":"122.00"},"Meno 3"]
[null,null,{"v":187,"d":"187.00"},"Meno 4"]
[null,null,{"v":99,"d":"99.00"},"Meno 5"]
["Summa",null,{"$f":"SUBTOTAL(109,MenotKes[Summa])","v":{"v":1049,"d":"1,049.00"}}]

{"sheet":"hei","index":8,"n_rows":9,"n_cols":5,"rows_kept":9,"merged":[[0,0,0,2]]}
["HEINÄKUUN MENOT",null,null,"Yhteenveto","Vihjeitä"]
["Päivämäärä","OSTOTIL.NRO","Summa","Luokka","Kuvaus"]
[{"$f":"DATE(YEAR(TODAY()),7,9)","v":"2017-07-09"},"A-12345",null,"Meno 1","Tarvikkeet"]
[{"$f":"DATE(YEAR(TODAY()),7,14)","v":"2017-07-14"},"A-12346",null,"Meno 2"]
[{"$nulls":3},"Meno 2"]
[{"$nulls":3},"Meno 3"]
[{"$nulls":3},"Meno 4"]
[{"$nulls":3},"Meno 5"]
["Summa",null,{"$f":"SUBTOTAL(109,MenotHei[Summa])","v":{"v":0,"d":"0.00"}}]

{"sheet":"elo","index":9,"n_rows":9,"n_cols":5,"rows_kept":9,"merged":[[0,0,0,2]]}
["ELOKUUN MENOT",null,null,"Yhteenveto","Vihjeitä"]
["Päivämäärä","OSTOTIL.NRO","Summa","Luokka","Kuvaus"]
[{"$f":"DATE(YEAR(TODAY()),8,8)","v":"2017-08-08"},"A-12345",null,"Meno 1","Tarvikkeet"]
[{"$f":"DATE(YEAR(TODAY()),8,9)","v":"2017-08-09"},"A-12346",null,"Meno 2"]
[{"$nulls":3},"Meno 2"]
[{"$nulls":3},"Meno 3"]
[{"$nulls":3},"Meno 4"]
[{"$nulls":3},"Meno 5"]
["Summa",null,{"$f":"SUBTOTAL(109,MenotElo[Summa])","v":{"v":0,"d":"0.00"}}]

{"sheet":"syy","index":10,"n_rows":9,"n_cols":5,"rows_kept":9,"merged":[[0,0,0,2]]}
["SYYSKUUN MENOT",null,null,"Yhteenveto","Vihjeitä"]
["Päivämäärä","OSTOTIL.NRO","Summa","Luokka","Kuvaus"]
[{"$f":"DATE(YEAR(TODAY()),9,9)","v":"2017-09-09"},"A-12345",null,"Meno 1","Tarvikkeet"]
[{"$f":"DATE(YEAR(TODAY()),9,15)","v":"2017-09-15"},"A-12346",null,"Meno 2"]
[{"$nulls":3},"Meno 2"]
[{"$nulls":3},"Meno 3"]
[{"$nulls":3},"Meno 4"]
[{"$nulls":3},"Meno 5"]
["Summa",null,{"$f":"SUBTOTAL(109,MenotSyy[Summa])","v":{"v":0,"d":"0.00"}}]

{"sheet":"lok","index":11,"n_rows":9,"n_cols":5,"rows_kept":9,"merged":[[0,0,0,2]]}
["LOKAKUUN MENOT",null,null,"Yhteenveto","Vihjeitä"]
["Päivämäärä","OSTOTIL.NRO","Summa","Luokka","Kuvaus"]
[{"$f":"DATE(YEAR(TODAY()),10,10)","v":"2017-10-10"},"A-12345",null,"Meno 1","Tarvikkeet"]
[{"$f":"DATE(YEAR(TODAY()),10,21)","v":"2017-10-21"},"A-12346",null,"Meno 2"]
[{"$nulls":3},"Meno 2"]
[{"$nulls":3},"Meno 3"]
[{"$nulls":3},"Meno 4"]
[{"$nulls":3},"Meno 5"]
["Summa",null,{"$f":"SUBTOTAL(109,MenotLok[Summa])","v":{"v":0,"d":"0.00"}}]

{"sheet":"mar","index":12,"n_rows":9,"n_cols":5,"rows_kept":9,"merged":[[0,0,0,2]]}
["MARRASKUUN MENOT",null,null,"Yhteenveto","Vihjeitä"]
["Päivämäärä","OSTOTIL.NRO","Summa","Luokka","Kuvaus"]
[{"$f":"DATE(YEAR(TODAY()),11,14)","v":"2017-11-14"},"A-12345",null,"Meno 1","Tarvikkeet"]
[{"$f":"DATE(YEAR(TODAY()),11,21)","v":"2017-11-21"},"A-12346",null,"Meno 2"]
[{"$nulls":3},"Meno 2"]
[{"$nulls":3},"Meno 3"]
[{"$nulls":3},"Meno 4"]
[{"$nulls":3},"Meno 5"]
["Summa",null,{"$f":"SUBTOTAL(109,MenotMar[Summa])","v":{"v":0,"d":"0.00"}}]

{"sheet":"jou","index":13,"n_rows":9,"n_cols":5,"rows_kept":9,"merged":[[0,0,0,2]]}
["JOULUKUUN MENOT",null,null,"Yhteenveto","Vihjeitä"]
["Päivämäärä","OSTOTIL.NRO","Summa","Luokka","Kuvaus"]
[{"$f":"DATE(YEAR(TODAY()),12,2)","v":"2017-12-02"},"A-12345",{"v":201,"d":"201.00"},"Meno 1","Tarvikkeet"]
[{"$f":"DATE(YEAR(TODAY()),12,24)","v":"2017-12-24"},"A-12346",{"v":98,"d":"98.00"},"Meno 2"]
[null,null,{"v":342,"d":"342.00"},"Meno 2"]
[null,null,{"v":122,"d":"122.00"},"Meno 3"]
[null,null,{"v":187,"d":"187.00"},"Meno 4"]
[null,null,{"v":99,"d":"99.00"},"Meno 5"]
["Summa",null,{"$f":"SUBTOTAL(109,MenotJou[Summa])","v":{"v":1049,"d":"1,049.00"}}]